[Event "FIDE WSTC-50-65 2022"]
[Site "Acqui Terme"]
[Date "2022.06.27"]
[Round "7.8"]
[White "Arkell, Keith C"]
[Black "Smeets, Pierre"]
[Result "1-0"]
[ECO "A12"]
[WhiteElo "2367"]
[BlackElo "1990"]
[Annotator "TA"]
[PlyCount "83"]
[EventDate "2022.06.20"]
[EventType "team-tourn"]
[EventCountry "ITA"]
[SourceTitle "playchess.com"]
[Source "ChessBase"]
[SourceQuality "1"]
[TimeControl "40/5400+30:1800+30"]

{[%evp 17,83,-10,-11,-15,-8,-22,0,-2,14,7,15,6,3,2,12,7,7,7,0,10,11,0,0,0,0,0,0,0,0,7,13,16,39,45,41,31,47,29,73,73,71,80,90,49,45,45,42,31,25,22,33,33,33,34,38,29,31,40,40,34,37,27,31,20,41,17,123,129]} 1. c4 {[%emt 0:01:00]} c6 {[%emt 0:01:00]} 2. Nf3 {[%emt 0:00:00]} Nf6 {[%emt 0:01:30]} 3. b3 {[%emt 0:00:00]} d5 {[%emt 0:00:30]} 4. Bb2 {[%emt 0:00:30]} Bf5 {[%emt 0:00:30]} 5. d3 {[%emt 0:01:30]} e6 {[%emt 0:01:30]} 6. Nbd2 {[%emt 0:00:30]} h6 {[%emt 0:01:30]} 7. g3 {[%emt 0:00:00]} Bh7 {[%emt 0:00:30]} 8. Bg2 {[%emt 0:01:00]} Be7 {[%emt 0:00:30]} 9. O-O {[%emt 0:00:00]} O-O {[%emt 0:00:30]} 10. Qc2 {[%emt 0:01:00] A12: English Opening: 1...c6 with b3 by White.} a5 {[%emt 0:00:30]} 11. Rfc1 {[%emt 0:05:30]} Na6 {[%emt 0:13:30]} 12. a3 {[%emt 0:00:30] [#] The position is equal.} Nc7 $146 {[%emt 0:05:30]} ({Predecessor:} 12... Re8 13. Ne5 Bd6 14. Ndf3 Nc5 15. b4 Ncd7 16. c5 Nxe5 17. Nxe5 Bxe5 18. Bxe5 Nd7 19. Bc3 {½-½ (67) Artemiev,V (2524)-Vitiugov,N (2734) Khanty-Mansiysk 2013}) 13. Bd4 {[%emt 0:05:30]} Nd7 {[%emt 0:03:30]} 14. Ne5 {[%emt 0:10:30]} Nxe5 {[%emt 0:01:30]} 15. Bxe5 {[%emt 0:00:30]} Bf6 {[%emt 0:00:30]} 16. Bxf6 {[%emt 0:06:30]} Qxf6 {[%emt 0:00:00]} 17. Qc3 {[%emt 0:01:30]} Qxc3 {[%emt 0:09:00]} 18. Rxc3 {[%emt 0:00:00]} Rfd8 {[%emt 0:00:30]} 19. Nf3 {[%emt 0:07:00]} Kf8 {[%emt 0:01:30]} 20. Rc2 {[%emt 0:04:30]} Ke7 {[%emt 0:02:30]} 21. Rac1 {[%emt 0:05:30]} f6 {[%emt 0:06:30]} 22. cxd5 {[%emt 0:00:30]} Nxd5 {[%emt 0:04:30]} 23. Nd2 {[%emt 0:01:30][%cal Bf3d2,Bd2b3,Bb3a5][%mdl 32]} Nb6 {[%emt 0:03:30]} 24. Rb1 {[%emt 0:06:30]} Rd7 {[%emt 0:04:30]} 25. b4 {[%emt 0:00:30]} axb4 {[%emt 0:10:30]} 26. axb4 {[%emt 0:00:00]} Rc8 {[%emt 0:00:30]} 27. Nb3 {[%emt 0:00:00]} Nd5 {[%emt 0:00:30]} 28. b5 {[%emt 0:07:30][%cal Ob5b6]} Rdc7 {[%emt 0:02:30]} 29. bxc6 {[%emt 0:02:30]} Rxc6 {[%emt 0:00:30]} 30. Rxc6 {[%emt 0:01:30]} bxc6 {[%emt 0:02:30]} 31. Na5 {[%emt 0:03:30]} Rc7 {[%emt 0:06:09]} 32. Rb8 {[%emt 0:05:30]} Bg6 {[%emt 0:00:47]} 33. Rg8 {[%emt 0:04:50]} Kf7 {[%emt 0:00:50]} 34. Ra8 {[%emt 0:00:10]} Ke7 {[%emt 0:00:18]} 35. f4 {[%emt 0:05:01]} Be8 {[%emt 0:00:57]} 36. Kf2 {[%emt 0:00:53]} g5 {[%emt 0:09:04]} 37. fxg5 {[%emt 0:00:28]} hxg5 {[%emt 0:00:11]} 38. h4 {[%emt 0:00:30]} gxh4 {[%emt 0:00:24]} 39. gxh4 {[%emt 0:00:04]} f5 {[%emt 0:01:29]} 40. Nc4 {[%emt 0:00:00]} Nf6 {[%emt 0:00:00]} 41. Ke3 {[%emt 0:03:34]} Rb7 {[%emt 0:17:21]} (41... Nd5+ $11 {remains equal.} 42. Kf2 c5) 42. Kf4 {[%emt 0:04:30] Weighted Error Value: White=0.06 (flawless) /Black=0.11 (very precise)} 1-0

[Event "FIDE WSTC-50-65 2022"]
[Site "Acqui Terme"]
[Date "2022.06.27"]
[Round "7.9"]
[White "Nunn, John D M"]
[Black "Hardicsay, Peter"]
[Result "1-0"]
[ECO "B38"]
[WhiteElo "2568"]
[BlackElo "2192"]
[Annotator "TA"]
[PlyCount "77"]
[EventDate "2022.06.20"]
[EventType "team-tourn"]
[EventCountry "ITA"]
[SourceTitle "playchess.com"]
[Source "ChessBase"]
[SourceQuality "1"]
[TimeControl "40/5400+30:1800+30"]

{[%evp 28,77,50,51,50,39,52,54,78,93,92,66,111,111,111,111,111,118,118,111,111,112,116,112,112,73,71,77,107,115,104,124,119,61,104,55,71,73,73,83,81,81,64,59,102,58,62,0,0,0,281,281]} 1. e4 {[%emt 0:01:00]} c5 {[%emt 0:01:00]} 2. Nf3 {[%emt 0:00:00]} g6 {[%emt 0:00:00]} 3. d4 {[%emt 0:00:00]} cxd4 {[%emt 0:00:00]} 4. Nxd4 {[%emt 0:00:30]} Bg7 {[%emt 0:00:30]} 5. c4 {[%emt 0:00:00]} Nc6 {[%emt 0:00:30]} 6. Be3 {[%emt 0:00:00]} Nf6 {[%emt 0:00:30]} 7. Nc3 {[%emt 0:00:00]} d6 {[%emt 0:00:30]} 8. Be2 {[%emt 0:00:00]} O-O {[%emt 0:00:30]} 9. O-O {[%emt 0:00:30]} Bd7 {[%emt 0:00:30]} 10. Qd2 {[%emt 0:00:30]} Nxd4 {[%emt 0:00:30]} 11. Bxd4 {[%emt 0:00:00]} Bc6 {[%emt 0:00:30]} 12. f3 {[%emt 0:00:00]} a5 {[%emt 0:00:30]} 13. b3 {[%emt 0:03:30]} Nd7 {[%emt 0:01:30]} 14. Bf2 {[%emt 0:00:30]} Nc5 {[%emt 0:02:30]} 15. Rab1 {[%emt 0:10:30]} Be5 {[%emt 0:30:30] B38: Sicilian: Maroczy Bind with 5...Bg7 and 7...0-0.} 16. Rfd1 {[%emt 0:07:30] [#] was the old line (16.Bd1).} Ne6 $146 {[%emt 0:13:30]} ({Predecessor:} 16... e6 17. Bd4 Qe7 18. Bxe5 dxe5 19. Qe3 Na6 20. Rd2 Rfd8 21. Rbd1 Rxd2 22. Rxd2 Rd8 23. Rxd8+ Qxd8 24. g3 Nb4 25. Kf2 Nc2 26. Qd3 Qb6+ 27. Kg2 Ne1+ {0-1 (27) Banikas,H (2568)-Henriquez Villagra,C (2517) Doha 2016}) 17. Be3 {[%emt 0:05:30]} f5 {[%emt 0:06:30] White is slightly better.} 18. exf5 {[%emt 0:03:30]} Rxf5 {[%emt 0:08:30]} 19. Nd5 {[%emt 0:02:30] And now f4 would win.} Bxd5 {[%emt 0:01:30]} 20. cxd5 {[%emt 0:00:30]} Nc5 {[%emt 0:02:30]} 21. f4 {[%emt 0:04:30]} Bg7 {[%emt 0:02:30]} 22. Bg4 {[%emt 0:00:30]} Rf8 {[%emt 0:00:30]} 23. Rbc1 {[%emt 0:00:30]} b6 {[%emt 0:11:32]} 24. Qe2 {[%emt 0:03:30]} Kh8 {[%emt 0:01:28]} 25. Qb5 {[%emt 0:07:30]} Rb8 {[%emt 0:02:49]} 26. a3 {[%emt 0:01:30]} Qe8 {[%emt 0:03:16]} 27. Qxe8 {[%emt 0:00:00]} Rfxe8 {[%emt 0:02:46]} 28. b4 {[%emt 0:01:00]} axb4 {[%emt 0:01:54]} 29. axb4 {[%emt 0:00:00]} Ne4 {[%emt 0:01:38]} 30. Rc7 {[%emt 0:02:00]} (30. Bd7 $16) 30... b5 {[%emt 0:01:30]} 31. Re1 {[%emt 0:04:30] White is more active.} (31. Bd7 $16) 31... Ra8 {[%emt 0:00:36]} 32. Bd7 {[%emt 0:01:30][%csl LRb5,LRe8]} Rf8 {[%emt 0:00:51]} 33. Bc6 {[%emt 0:00:30] A strong pair of Bishops.} Ra4 {[%emt 0:01:03]} 34. Rxe7 {[%emt 0:07:30]} Rxb4 {[%emt 0:00:23]} 35. g3 {[%emt 0:02:30]} Nc3 {[%emt 0:02:00]} 36. Rd7 {[%emt 0:02:30]} Re4 {[%emt 0:00:36][%cal Oe4e3] aiming for ...Rxe3!} 37. Bf2 {[%emt 0:02:30]} ({Much worse is} 37. Rxd6 {[#]} Rxe3 $1 38. Rxe3 Bd4 $15) (37. Kg2 $14) 37... Rxe1+ $11 {[%emt 0:00:23]} 38. Bxe1 {[%emt 0:00:30][%cal Od7g7] Hoping for Rxg7!} Rb8 $2 {[%emt 0:00:22][%mdl 8192] [#]} (38... Bd4+ $11 39. Kg2 Rb8) 39. Rxg7 $1 {[%emt 0:00:30][%mdl 512] Weighted Error Value: White=0.13 (very precise) /Black=0.31} 1-0

[Event "FIDE WSTC-50-65 2022"]
[Site "Acqui Terme"]
[Date "2022.06.27"]
[Round "7.10"]
[White "Vegh, Endre"]
[Black "Littlewood, Paul E"]
[Result "1/2-1/2"]
[ECO "E24"]
[WhiteElo "2225"]
[BlackElo "2347"]
[Annotator "TA"]
[PlyCount "81"]
[EventDate "2022.06.20"]
[EventType "team-tourn"]
[EventCountry "ITA"]
[SourceTitle "playchess.com"]
[Source "ChessBase"]
[SourceQuality "1"]
[TimeControl "40/5400+30:1800+30"]

{[%evp 11,81,-26,0,0,19,4,11,0,0,-35,-28,-73,-47,-182,-178,-173,-188,-206,-209,-194,-194,-191,-196,-205,-138,-144,-139,-174,-164,-174,-131,-125,-114,-127,-125,-155,-131,-150,-108,-145,-124,-124,-102,-156,-107,-146,-147,-187,-161,-151,-143,-156,-150,-139,-137,-167,-138,-137,0,-174,-172,-174,-166,-167,79,0,0,-164,-95,-130,-111,-140]} 1. d4 {[%emt 0:01:00]} Nf6 {[%emt 0:01:00]} 2. c4 {[%emt 0:00:00]} e6 {[%emt 0:00:30]} 3. Nc3 {[%emt 0:00:00]} Bb4 {[%emt 0:00:30]} 4. a3 {[%emt 0:00:30]} Bxc3+ {[%emt 0:00:30]} 5. bxc3 {[%emt 0:00:30]} d6 {[%emt 0:00:30]} 6. f3 {[%emt 0:00:30]} Nh5 {[%emt 0:02:30] 6...c5 is the modern continuation.} 7. Nh3 {[%emt 0:02:30] E24: Nimzo-Indian: Sämisch: Unusual Black 5th moves and 5...c5 sidelines.} e5 {[%emt 0:01:30] [#] Hoping for ...Bxh3.} 8. g4 $146 {[%emt 0:02:30]} ({Predecessor:} 8. Nf2 f5 9. dxe5 dxe5 10. Qxd8+ Kxd8 11. e4 Nf6 12. exf5 Bxf5 13. Be3 Nc6 14. Be2 Re8 {½-½ (22) Bosiocic,M (2555)-Kurajica,B (2532) Sibenik 2012}) 8... Qh4+ {[%emt 0:12:30]} 9. Nf2 {[%emt 0:01:30] The position is equal.} Nf6 {[%emt 0:00:30]} 10. Be3 {[%emt 0:06:30]} Nc6 {[%emt 0:04:30]} 11. Qd2 {[%emt 0:05:30] [#]} h6 {[%emt 0:00:30] Prevents Bg5.} 12. O-O-O {[%emt 0:04:30]} (12. g5 $15 hxg5 13. Bxg5) 12... Na5 $19 {[%emt 0:03:30]} 13. Qd3 {[%emt 0:06:30]} Be6 {[%emt 0:02:30]} 14. d5 {[%emt 0:06:30]} Bd7 {[%emt 0:00:30][%cal Be6d7,Bd7a4,Ba4b3][%mdl 32]} 15. Nh3 {[%emt 0:04:30]} Nh7 {[%emt 0:09:30] Pair of Knights!} 16. Bf2 {[%emt 0:03:30]} Qf6 {[%emt 0:01:30]} 17. e4 {[%emt 0:01:30]} Ng5 {[%emt 0:04:30]} 18. Nxg5 {[%emt 0:04:30]} hxg5 {[%emt 0:00:30]} 19. Bg3 {[%emt 0:03:30]} Ba4 {[%emt 0:01:30]} 20. Re1 {[%emt 0:01:30]} a6 {[%emt 0:09:30]} 21. Kd2 {[%emt 0:11:30]} Bb3 {[%emt 0:04:30]} 22. Ke3 {[%emt 0:02:30]} Bxc4 {[%emt 0:06:30]} 23. Qd1 {[%emt 0:05:30]} b5 {[%emt 0:00:30] Prevents Qa4.} 24. Kf2 {[%emt 0:01:30]} Kd7 {[%emt 0:04:30]} 25. Kg2 {[%emt 0:02:30]} Bxf1+ {[%emt 0:01:30]} 26. Rhxf1 {[%emt 0:00:30]} Nc4 {[%emt 0:01:30]} 27. Qc1 {[%emt 0:00:00]} (27. a4 $142) 27... Qd8 {[%emt 0:03:30]} (27... Qh6 $142 28. Kg1 Nb6) 28. Re2 {[%emt 0:01:00]} f6 {[%emt 0:01:30]} 29. Rh1 {[%emt 0:01:30]} c5 {[%emt 0:04:11]} 30. dxc6+ {[%emt 0:00:30]} Kxc6 {[%emt 0:00:06]} 31. Rd1 {[%emt 0:00:30]} Qa5 {[%emt 0:00:58]} 32. Ra2 {[%emt 0:01:54]} Qa4 {[%emt 0:00:34][%cal Oa4d1] Threatens to win with ...Qxd1!} 33. Re1 {[%emt 0:00:29]} Qb3 {[%emt 0:04:39]} 34. Qa1 {[%emt 0:02:38]} Qa4 {[%emt 0:01:55]} ({Black should play} 34... a5 $17 {Strongly threatening ...Kd7.} 35. a4 bxa4) 35. Rb1 $2 {[%emt 0:02:45] [#]} (35. Qc1 $1 $11) 35... a5 $1 {[%emt 0:01:02]} 36. Bf2 {[%emt 0:01:36]} Rhd8 {[%emt 0:00:32]} 37. Rd1 {[%emt 0:00:41]} Qb3 $2 {[%emt 0:03:48]} (37... Kd7 $19 {...Ke7 is the strong threat.} 38. Qb1 Ke7) 38. Rb1 $2 {[%emt 0:00:13] Chess con chili.} (38. a4 $16 b4 39. Rb1 Qxc3 40. Rc1 Qxa1 41. Rxc4+ Kd7 42. Rxa1) 38... Qa4 {[%emt 0:00:20]} 39. Rd1 {[%emt 0:00:06]} g6 {[%emt 0:01:57]} ({Black should try} 39... Kd7 $19 40. Qb1 Ke7) 40. Qb1 $17 {[%emt 0:00:00]} Rab8 {[%emt 0:00:00]} 41. Qd3 {[%emt 0:15:38] Weighted Error Value: White=0.28 (precise) /Black=0.31} 1/2-1/2

[Event "FIDE WSTC-50-65 2022"]
[Site "Acqui Terme"]
[Date "2022.06.27"]
[Round "7.11"]
[White "Povah, Nigel E"]
[Black "Dory, Jeno"]
[Result "1/2-1/2"]
[ECO "A45"]
[WhiteElo "2201"]
[BlackElo "2196"]
[Annotator "RC"]
[PlyCount "99"]
[EventDate "2022.06.20"]
[EventType "team-tourn"]
[EventCountry "ITA"]
[SourceTitle "playchess.com"]
[Source "ChessBase"]
[SourceQuality "1"]
[TimeControl "40/5400+30:1800+30"]

1. d4 {[%emt 0:01:00]} Nf6 {[%emt 0:01:00]} 2. Bg5 {[%emt 0:00:00]} Ne4 {[%emt 0:00:30]} 3. Bf4 {[%emt 0:00:00]} d5 {[%emt 0:00:00]} 4. e3 {[%emt 0:09:30]} Bf5 {[%emt 0:02:00]} 5. Bd3 {[%emt 0:19:30]} e6 {[%emt 0:01:30]} 6. g4 {[%emt 0:04:30]} Bg6 {[%emt 0:01:30]} 7. h4 {[%emt 0:00:30]} h5 {[%emt 0:07:30]} 8. f3 {[%emt 0:03:30]} hxg4 {[%emt 0:01:30]} 9. fxe4 {[%emt 0:00:30]} Rxh4 {[%emt 0:06:30]} 10. Rxh4 {[%emt 0:00:30]} Qxh4+ {[%emt 0:00:30]} 11. Kd2 {[%emt 0:00:30]} dxe4 {[%emt 0:07:30]} 12. Be2 {[%emt 0:05:30]} c5 {[%emt 0:14:30]} 13. c3 {[%emt 0:06:30]} Nc6 {[%emt 0:17:30]} 14. Bb5 {[%emt 0:04:30]} Rc8 {[%emt 0:03:30]} 15. Qb3 {[%emt 0:02:30]} Qe7 {[%emt 0:02:30]} 16. Na3 {[%emt 0:02:30]} f6 {[%emt 0:08:30]} 17. Nc4 {[%emt 0:04:30]} Qd7 {[%emt 0:02:30]} 18. Ke1 {[%emt 0:03:30]} cxd4 {[%emt 0:00:50]} 19. cxd4 {[%emt 0:00:30]} Kf7 {[%emt 0:05:33]} 20. Rc1 {[%emt 0:07:30]} Kg8 {[%emt 0:02:15]} 21. Ne2 {[%emt 0:12:18]} Bf7 {[%emt 0:01:40]} 22. Bg3 {[%emt 0:01:16]} Qd5 {[%emt 0:06:38]} 23. Nd2 {[%emt 0:01:32]} Bb4 {[%emt 0:03:30]} 24. Nc3 {[%emt 0:02:55]} Bxc3 {[%emt 0:00:40]} 25. Rxc3 {[%emt 0:00:15]} Qg5 {[%emt 0:00:54]} 26. Nxe4 {[%emt 0:01:24]} Qh5 {[%emt 0:00:39]} 27. Nf2 {[%emt 0:02:21]} Qf5 {[%emt 0:01:24]} 28. e4 {[%emt 0:01:40]} Qg5 {[%emt 0:00:09]} 29. Kf1 {[%emt 0:00:34]} Kh7 {[%emt 0:00:23]} 30. Qa4 {[%emt 0:01:41]} Be8 {[%emt 0:00:26]} 31. Be2 {[%emt 0:00:40]} Rd8 {[%emt 0:00:20]} 32. Bxg4 {[%emt 0:00:42]} Ne5 {[%emt 0:00:35]} 33. Qd1 {[%emt 0:00:31]} f5 {[%emt 0:00:24]} 34. Bxf5+ {[%emt 0:00:32]} exf5 {[%emt 0:00:10]} 35. Bxe5 {[%emt 0:00:10]} Bb5+ {[%emt 0:00:14]} 36. Ke1 {[%emt 0:00:54]} Qg1+ {[%emt 0:00:11]} 37. Kd2 {[%emt 0:00:01]} Qxf2+ {[%emt 0:00:34]} 38. Kc1 {[%emt 0:00:09]} Be2 {[%emt 0:02:21]} 39. Qh1+ {[%emt 0:00:44]} Kg8 {[%emt 0:00:08]} 40. Rc7 {[%emt 0:00:00]} Qe3+ {[%emt 0:00:00]} 41. Kb1 {[%emt 0:03:11]} Qxe4+ {[%emt 0:05:02]} 42. Qxe4 {[%emt 0:00:30]} fxe4 {[%emt 0:00:00]} 43. Rxg7+ {[%emt 0:00:30]} Kf8 {[%emt 0:00:00]} 44. Rxb7 {[%emt 0:00:30]} Rc8 {[%emt 0:01:30]} 45. b4 {[%emt 0:12:01]} Bd3+ {[%emt 0:01:30]} 46. Kb2 {[%emt 0:00:06]} a6 {[%emt 0:02:30]} 47. Rb8 {[%emt 0:06:03]} Rxb8 {[%emt 0:00:30]} 48. Bxb8 {[%emt 0:00:05]} Ke7 {[%emt 0:05:36]} 49. a4 {[%emt 0:01:55]} Ke6 {[%emt 0:01:52]} 50. Kc3 {[%emt 0:00:15]} 1/2-1/2

[Event "FIDE WSTC-50-65 2022"]
[Site "Acqui Terme"]
[Date "2022.06.27"]
[Round "7.12"]
[White "Szabolcsi, Janos"]
[Black "Snape, Ian L"]
[Result "1/2-1/2"]
[ECO "D10"]
[WhiteElo "2233"]
[BlackElo "2112"]
[Annotator "RC"]
[PlyCount "48"]
[EventDate "2022.06.20"]
[EventType "team-tourn"]
[EventCountry "ITA"]
[SourceTitle "playchess.com"]
[Source "ChessBase"]
[SourceQuality "1"]
[TimeControl "40/5400+30:1800+30"]

1. d4 {[%emt 0:01:00]} c5 {[%emt 0:01:00]} 2. c3 {[%emt 0:00:30]} cxd4 {[%emt 0:00:00]} 3. cxd4 {[%emt 0:00:30]} d5 {[%emt 0:00:00]} 4. Nc3 {[%emt 0:00:30]} Nc6 {[%emt 0:00:00]} 5. Bf4 {[%emt 0:00:30]} e5 {[%emt 0:00:00]} 6. dxe5 {[%emt 0:04:30]} d4 {[%emt 0:00:30]} 7. Ne4 {[%emt 0:01:30]} Bf5 {[%emt 0:00:00]} 8. Ng3 {[%emt 0:02:30]} Bg6 {[%emt 0:02:00]} 9. Nf3 {[%emt 0:04:30]} Qb6 {[%emt 0:12:30]} 10. Qb3 {[%emt 0:06:30]} Bb4+ {[%emt 0:03:30]} 11. Bd2 {[%emt 0:02:30]} Nge7 {[%emt 0:03:30]} 12. a3 {[%emt 0:08:30]} Bxd2+ {[%emt 0:06:30]} 13. Nxd2 {[%emt 0:00:30]} Qa5 {[%emt 0:03:30]} 14. e4 {[%emt 0:14:30]} dxe3 {[%emt 0:02:30]} 15. fxe3 {[%emt 0:00:00]} O-O {[%emt 0:06:30]} 16. Qb5 {[%emt 0:05:00]} Qxb5 {[%emt 0:02:30]} 17. Bxb5 {[%emt 0:00:30]} Nxe5 {[%emt 0:00:00]} 18. O-O {[%emt 0:01:30]} Bd3 {[%emt 0:08:00]} 19. Bxd3 {[%emt 0:05:30]} Nxd3 {[%emt 0:00:00]} 20. Nf5 {[%emt 0:03:30]} Nxf5 {[%emt 0:03:00]} 21. Rxf5 {[%emt 0:00:00]} Rac8 {[%emt 0:01:30]} 22. Rd5 {[%emt 0:05:00]} Rfd8 {[%emt 0:04:30]} 23. Rxd8+ {[%emt 0:00:30]} Rxd8 {[%emt 0:00:30]} 24. b4 {[%emt 0:00:30]} Kf8 {[%emt 0:04:30]} 1/2-1/2

[Event "FIDE WSTC-50-65 2022"]
[Site "Acqui Terme"]
[Date "2022.06.27"]
[Round "7.13"]
[White "Knaak, Rainer"]
[Black "Gruenfeld, Yehuda"]
[Result "0-1"]
[ECO "A36"]
[WhiteElo "2479"]
[BlackElo "2424"]
[Annotator "TA"]
[PlyCount "88"]
[EventDate "2022.06.20"]
[EventType "team-tourn"]
[EventCountry "ITA"]
[SourceTitle "playchess.com"]
[Source "ChessBase"]
[SourceQuality "1"]
[TimeControl "40/5400+30:1800+30"]

{[%evp 18,88,0,-11,-6,-9,-10,-21,-3,-4,-17,-27,-6,-9,23,26,40,21,46,46,43,50,49,0,6,-16,0,0,0,0,0,0,0,-9,0,-41,-44,-55,-47,-133,-116,-133,-127,-133,-128,-156,-149,-329,-329,-329,-329,-329,-329,-415,-422,-466,-323,-332,-325,-422,-414,-431,-423,-548,-335,-320,-320,-312,-312,-543,-527,-543,-527]} 1. c4 {[%emt 0:01:00]} Nf6 {[%emt 0:02:00]} 2. Nc3 {[%emt 0:00:00]} c5 {[%emt 0:00:30]} 3. g3 {[%emt 0:01:00]} g6 {[%emt 0:02:30]} 4. Bg2 {[%emt 0:00:30]} Bg7 {[%emt 0:00:30]} 5. e4 {[%emt 0:00:30]} Nc6 {[%emt 0:00:30]} 6. Nge2 {[%emt 0:00:30]} d6 {[%emt 0:00:30]} 7. d3 {[%emt 0:00:30]} a6 {[%emt 0:01:30]} 8. O-O {[%emt 0:01:30]} O-O {[%emt 0:00:30]} 9. h3 {[%emt 0:00:30]} Rb8 {[%emt 0:00:30]} 10. f4 {[%emt 0:01:30]} Nd7 {[%emt 0:04:30] A36: Symmetrical English vs ...g6: 4 Bg2 Bg7.} 11. a4 {[%emt 0:06:30]} e6 {[%emt 0:00:30]} 12. g4 {[%emt 0:14:30] [#]} f5 $146 {[%emt 0:06:30] The position is equal.} ({Predecessor:} 12... Nd4 13. Ng3 Qh4 14. Kh2 b5 15. g5 f6 16. axb5 axb5 17. Be3 fxg5 18. Bxd4 cxd4 19. Nxb5 gxf4 {0-1 (28) Seliger,B-Horak,J (2192) Teplice 2007}) 13. g5 {[%emt 0:00:30]} Nd4 {[%emt 0:01:30]} 14. Ng3 {[%emt 0:03:30]} Re8 {[%emt 0:13:30]} 15. h4 {[%emt 0:05:30]} Nf8 {[%emt 0:00:30]} 16. Be3 {[%emt 0:14:30]} (16. h5 {with more complications.} b5 17. axb5 axb5 18. Nxb5 Nxb5 19. cxb5 Rxb5 20. exf5 exf5 21. Bc6) 16... Bd7 {[%emt 0:00:30]} 17. Nce2 {[%emt 0:04:30]} Bc6 {[%emt 0:04:30]} 18. Nxd4 {[%emt 0:01:30]} cxd4 {[%emt 0:00:30]} 19. Bd2 {[%emt 0:00:30]} a5 $1 {[%emt 0:00:30]} 20. Qe1 {[%emt 0:02:30]} Ra8 $1 {[%emt 0:00:30]} 21. b3 {[%emt 0:00:30]} Nd7 {[%emt 0:00:30]} 22. b4 {[%emt 0:06:30]} axb4 {[%emt 0:01:30]} 23. Bxb4 {[%emt 0:00:00]} Nc5 {[%emt 0:00:30]} 24. Bxc5 {[%emt 0:00:00]} dxc5 {[%emt 0:00:00]} 25. Qf2 {[%emt 0:03:30]} Qc7 {[%emt 0:02:00]} ({But not} 25... Bxa4 26. exf5 exf5 27. Bxb7 $14) 26. a5 {[%emt 0:16:16]} Rxa5 {[%emt 0:03:30]} (26... Ra7 {keeps more tension.} 27. h5 Rxa5 28. Rxa5 Qxa5 29. Re1 Qd8) 27. Rxa5 {[%emt 0:05:32]} Qxa5 {[%emt 0:00:30]} 28. exf5 {[%emt 0:00:13]} (28. Re1 $15) 28... exf5 $17 {[%emt 0:00:30]} 29. Bxc6 {[%emt 0:02:02]} bxc6 {[%emt 0:00:30]} 30. Rd1 {[%emt 0:00:42]} Bf8 {[%emt 0:01:30][%cal Bg7f8,Bf8d6,Bd6f4][%mdl 32]} 31. Nf1 {[%emt 0:00:36]} Bd6 {[%emt 0:00:30] Black is more active.} 32. Ng3 $2 {[%emt 0:01:12] [#] Loses the game.} (32. Kg2 $17) 32... Qc7 $19 {[%emt 0:07:30]} 33. Re1 {[%emt 0:01:39]} Rxe1+ {[%emt 0:01:30]} 34. Qxe1 {[%emt 0:00:03][%mdl 4096] Endgame KQB-KQN} Kf7 {[%emt 0:00:30] Prevents Qe8+.} ({Don't go for} 34... Bxf4 $2 35. Qe8+ Kg7 36. Ne2 $19) 35. Qa1 {[%emt 0:00:31]} Bxf4 {[%emt 0:00:30]} 36. Nf1 {[%emt 0:00:05]} Qb6 {[%emt 0:03:30]} 37. Qa8 {[%emt 0:00:30]} Bb8 {[%emt 0:00:30]} 38. Nd2 {[%emt 0:01:50]} Qc7 {[%emt 0:00:00] [#] White must now prevent ...Qg3+.} 39. Nf1 {[%emt 0:00:17] Prevents Qg3+.} Ke7 {[%emt 0:04:00]} 40. Qa2 {[%emt 0:00:00]} Kd7 {[%emt 0:00:00] And now ...Qf4 would win.} 41. Qf2 {[%emt 0:01:32]} Qe5 {[%emt 0:04:00]} 42. Kg2 {[%emt 0:02:30]} Bc7 {[%emt 0:01:30]} 43. Qf3 $2 {[%emt 0:09:30]} (43. Qd2 {is the only way for White.}) 43... Ba5 {[%emt 0:03:30]} 44. Kh3 {[%emt 0:04:30]} Qe1 {[%emt 0:05:30] Weighted Error Value: White=0.34/Black=0.16 (very precise)} 0-1